bitfinex/quotes_ETHUSD_20250823
["timestamp","ask_amount","ask_price","bid_price","bid_amount"]
[1755958752604,0.31933853,4752.5,4752.4,1.618]
[1755958752975,0.78793853,4752.5,4752.4,5.403]
[1755958753844,0.78793853,4752.5,4750.0,2.10623821]
[1755958753845,0.78793853,4752.5,4751.0,1.618]
[1755958754142,0.4686,4752.4,4751.5,2.10456137]
[1755958754314,0.4686,4752.4,4751.6,3.784]
[1755958754520,0.5742,4752.4,4751.7,0.1056]
[1755958754719,0.3163,4751.8,4751.7,0.1056]
[1755958754956,0.3163,4751.8,4751.7,2.10450996]
[1755958755242,0.2663,4751.8,4751.7,2.21010996]
[1755958756241,0.002,4752.5,4751.7,0.869]
[1755958756413,0.002,4752.5,4752.3,0.1056]
[1755958756607,0.002,4752.5,4752.3,3.8846]
[1755958756815,0.3163,4752.4,4752.3,3.8846]
[1755958757248,0.7849,4752.4,4752.3,3.8846]
[1755958757451,0.7849,4752.4,4752.3,0.1056]
[1755958757614,0.7849,4752.4,4751.8,0.02]
[1755958757615,0.7849,4752.4,4752.0,3.777]
[1755958757815,0.3163,4752.4,4752.0,3.777]
[1755958758015,0.4686,4752.3,4752.0,3.777]
[1755958758219,0.3163,4752.1,4752.0,3.777]
[1755958758425,0.3163,4752.1,4751.9,3.777]
[1755958758616,0.7865,4752.1,4751.9,3.777]
[1755958759017,0.00103853,4752.0,4751.9,3.777]
[1755958759214,0.29623853,4752.0,4751.8,0.1256]
[1755958759412,0.4702,4751.9,4751.8,0.1256]
[1755958759720,0.7654,4751.9,4751.8,0.1256]
[1755958760059,0.76643853,4751.9,4751.8,0.1256]
[1755958760366,0.76643853,4751.9,4751.8,0.02]
[1755958760657,8.54153144,4751.9,4751.8,0.02]
[1755958760813,8.99512912,4751.9,4751.8,0.02]
[1755958761349,2.76477573,4751.1,4751.0,0.001]
[1755958761551,20.71348492,4751.1,4751.0,0.001]
[1755958761762,23.77890898,4751.1,4751.0,0.001]
[1755958761942,2.76521883,4750.1,4748.8,0.02]
[1755958762251,5.5732,4750.1,4748.8,0.02]
[1755958762457,6.149,4750.1,4748.8,0.02]
[1755958762619,6.7639,4750.1,4748.8,0.02]
[1755958762972,10.5359,4750.1,4748.8,0.02]
[1755958764247,12.64111883,4750.1,4748.8,0.02]
[1755958764453,10.5359,4750.1,4748.8,0.02]
[1755958764666,11.9759,4750.1,4748.8,0.02]
[1755958764860,14.08111883,4750.1,4748.8,0.02]
[1755958765062,14.41058279,4750.1,4748.8,0.02]
[1755958765938,8.53336396,4750.1,4748.8,0.02]
[1755958766268,6.1524,4750.1,4748.8,0.02]
[1755958766576,9.258,4750.1,4748.8,0.02]
[1755958766763,6.258,4750.1,4748.8,0.02]
[1755958766963,6.261,4750.1,4748.8,0.02]
[1755958767169,2.0188,4750.1,4749.1,0.4315]
[1755958767346,5.7908,4750.1,4749.1,0.4315]
[1755958767740,2.6449,4750.1,4749.1,0.4315]
[1755958768057,1.7236,4750.1,4749.4,0.1056]
[1755958768265,1.7236,4750.1,4749.7,2.10539274]
[1755958768434,1.618,4751.4,4750.0,0.2867]
[1755958768636,0.1056,4750.5,4750.1,2.10521883]
[1755958768866,0.1056,4750.5,4750.1,2.53671883]
[1755958769169,0.1056,4750.5,4750.0,0.001]
[1755958769670,0.1056,4750.5,4750.4,2.39078588]
[1755958769875,0.1056,4751.0,4750.4,0.7172]
[1755958770173,0.1056,4751.2,4750.7,2.10492855]
[1755958770358,0.1056,4751.2,4750.7,0.4315]
[1755958770538,0.1056,4751.2,4751.1,0.2857]
[1755958770734,0.1056,4751.2,4750.6,2.10498739]
[1755958770940,1.618,4751.4,4750.0,0.001]
[1755958770941,0.2952,4750.7,4750.0,0.001]
[1755958771148,0.1056,4750.5,4750.0,0.001]
[1755958772153,0.1056,4750.5,4750.4,2.10508588]
[1755958772355,0.1056,4750.5,4750.4,2.39078588]
[1755958772559,0.1056,4750.5,4750.4,2.82228588]
[1755958772751,0.1056,4750.9,4750.5,2.10504018]
[1755958772955,3.767,4751.2,4750.8,0.2857]
[1755958773393,0.2952,4750.9,4750.1,2.1052036]
[1755958773545,0.4008,4750.9,4750.4,2.10504308]
[1755958773745,0.1056,4750.9,4750.2,0.1056]
[1755958774100,0.1056,4751.5,4751.0,2.10480479]
[1755958774302,0.1056,4751.5,4751.1,2.10473286]
[1755958774448,0.1056,4751.5,4751.4,0.2857]
[1755958774797,0.1056,4751.5,4751.1,2.10473286]
[1755958774798,0.1056,4751.5,4751.1,2.10473762]
[1755958775151,0.1056,4751.5,4751.3,2.10465138]
[1755958775355,0.1056,4751.7,4751.4,0.2857]
[1755958775569,0.00103853,4751.8,4751.4,0.2857]
[1755958775766,0.00103853,4751.8,4751.4,2.39030464]
[1755958775948,0.00103853,4751.8,4751.6,2.10455285]
[1755958776272,0.00103853,4751.8,4751.7,0.3913]
[1755958776844,0.00103853,4751.8,4751.7,0.1056]
[1755958777050,0.00103853,4751.8,4751.4,2.21023943]
[1755958777292,0.00103853,4751.8,4751.7,2.10450996]
[1755958777497,0.00103853,4751.8,4751.5,2.10459854]
[1755958777795,0.00103853,4751.8,4751.4,0.1056]
[1755958778085,0.00103853,4751.8,4751.7,0.2857]
[1755958778257,0.00103853,4751.8,4751.4,0.1056]
[1755958778454,0.00103853,4751.8,4751.4,2.21023918]
[1755958778779,0.00103853,4751.8,4751.4,0.1056]
[1755958779193,0.00103853,4751.8,4751.4,2.21022325]
[1755958779390,0.00103853,4751.8,4751.4,0.1056]
[1755958779553,0.57683853,4751.8,4751.2,0.1056]
[1755958779880,0.10663853,4751.8,4751.2,0.1056]
[1755958780383,0.10663853,4751.8,4751.7,2.39020996]
[1755958780586,0.10663853,4751.8,4751.7,2.82170996]
[1755958780765,0.00103853,4751.8,4751.7,2.92730996]
[1755958781578,0.00103853,4751.8,4751.7,0.3913]
[1755958781780,0.00103853,4751.8,4751.7,0.1056]
[1755958781967,0.00103853,4751.8,4751.3,0.1056]
[1755958782485,0.00103853,4751.8,4751.7,2.39020996]
[1755958782685,0.00103853,4751.8,4751.7,0.2857]
[1755958782883,0.00103853,4751.8,4751.0,0.4315]
[1755958783085,0.29623853,4751.8,4751.3,2.21028484]
[1755958783592,0.29623853,4751.8,4751.3,0.1056]
[1755958783889,0.29623853,4751.8,4751.4,2.10464284]
[1755958784184,0.29623853,4751.8,4751.5,2.10457229]
[1755958784392,0.29623853,4751.8,4751.3,0.1056]
[1755958784594,0.1056,4751.6,4750.9,0.1056]
[1755958784801,0.1056,4751.3,4750.6,0.1056]
[1755958785098,0.1056,4751.3,4750.8,2.10490239]
[1755958785602,0.1056,4751.3,4750.6,2.21055779]
[1755958785771,0.1056,4751.3,4750.7,2.10495244]
[1755958786088,0.1056,4751.0,4750.6,2.10499288]
[1755958786594,0.1056,4751.0,4750.4,2.21068012]
[1755958786752,0.1056,4751.0,4750.7,2.10494391]
[1755958787078,0.1056,4751.0,4750.8,2.10487466]
[1755958787479,0.1056,4751.0,4750.5,2.10504157]
[1755958787683,0.1056,4751.0,4750.8,2.10490161]
[1755958787874,0.1056,4751.0,4750.9,2.39056434]
[1755958788464,0.1056,4751.0,4750.9,0.2857]
[1755958788677,0.1056,4751.0,4750.9,2.10486434]
[1755958789369,0.1056,4751.0,4750.4,0.1056]
[1755958789586,0.1056,4751.0,4750.5,2.10504157]
[1755958789893,0.1056,4751.0,4750.6,2.10498349]
[1755958790098,0.1056,4751.0,4750.4,2.21067912]
[1755958790519,0.1056,4751.0,4750.7,2.10495228]
[1755958790703,0.1056,4751.0,4750.9,2.40756434]
[1755958790995,0.00103853,4751.8,4751.4,2.10463279]
[1755958791196,0.00103853,4751.8,4751.2,0.1056]
[1755958791865,0.00103853,4751.8,4751.3,2.10464689]
[1755958792097,0.00103853,4751.8,4751.2,2.21031719]
[1755958792297,0.00103853,4751.8,4751.3,2.10467747]
[1755958792598,0.00103853,4751.8,4751.2,2.21029615]
[1755958792812,0.00103853,4751.8,4751.7,2.40720996]
[1755958793102,0.00103853,4751.8,4751.7,2.51280996]
[1755958793400,0.00103853,4751.8,4751.7,6.70180996]
[1755958794480,0.00103853,4751.8,4751.7,9.70180996]
[1755958794684,1e-08,4751.8,4751.7,9.70180996]
[1755958795394,0.002,4752.5,4751.7,9.70180996]
[1755958795704,0.002,4752.5,4752.2,2.10428854]
[1755958795890,0.002,4752.5,4752.2,7.02498854]
[1755958796097,0.002,4752.5,4752.2,7.47698854]
[1755958796405,0.002,4752.5,4752.2,11.20898854]
[1755958796608,0.002,4752.5,4752.2,7.58258854]
[1755958796769,0.002,4752.5,4752.2,11.31258854]
[1755958796968,0.2993,4752.3,4751.2,4.182]
[1755958797197,0.2993,4752.3,4751.8,2.10446567]
[1755958797509,0.002,4752.3,4752.2,2.40698854]
[1755958797820,0.002,4752.3,4752.0,0.1056]
[1755958797969,0.002,4752.3,4752.2,2.40698854]
[1755958798170,0.002,4752.3,4752.2,0.3027]
[1755958798404,0.002,4752.3,4752.0,0.1056]
[1755958798791,0.002,4752.3,4752.2,0.3027]
[1755958798989,0.002,4752.3,4752.2,2.40698854]
[1755958799203,0.002,4752.3,4752.2,0.3027]
[1755958799603,0.002,4752.3,4752.0,0.1056]
[1755958800376,0.2973,4752.1,4752.0,0.1056]
[1755958800809,0.002,4752.3,4752.0,0.1056]
[1755958801109,0.002,4752.3,4752.0,2.20995496]
[1755958801284,0.002,4752.3,4752.0,0.1056]
[1755958801609,0.2973,4752.1,4752.0,0.1056]
[1755958801809,0.8761,4752.1,4751.4,0.1056]
[1755958802018,0.4029,4752.1,4751.4,0.1056]
[1755958802313,0.4732,4752.0,4751.4,0.1056]
[1755958802474,0.4732,4752.0,4750.3,3.734]
[1755958802807,0.4029,4751.5,4750.9,0.1056]
[1755958805011,0.4029,4751.5,4750.4,2.55708173]
[1755958805012,0.4732,4751.4,4750.4,3.8416]
[1755958805212,0.2973,4750.5,4750.2,0.001]
[1755958805712,0.7705,4750.5,4750.2,0.001]
[1755958806017,0.4732,4750.4,4750.2,0.001]
[1755958806174,0.4029,4750.3,4750.2,0.001]
[1755958806379,0.8761,4750.3,4750.2,0.001]
[1755958806787,1.5361,4750.3,4750.2,0.001]
[1755958806987,4.00533648,4750.3,4750.2,0.001]
[1755958807218,1.90020628,4750.3,4750.2,0.001]
[1755958807382,3.6412302,4750.3,4750.2,0.001]
[1755958807578,6.6412302,4750.3,4750.2,0.001]
[1755958808711,10.3722302,4750.3,4750.2,0.001]
[1755958809699,10.82464058,4750.3,4750.2,0.001]
[1755958810607,7.09364058,4750.3,4750.2,0.001]
[1755958810834,2.76521883,4750.1,4750.0,0.0306]
[1755958811049,8.13392921,4750.1,4750.0,0.0306]
[1755958811400,3.66,4750.0,4749.8,0.02]
[1755958811607,2.10557345,4749.3,4749.2,0.001]
[1755958811908,2.76566212,4749.1,4746.5,0.452]
[1755958812098,7.78756212,4749.1,4746.5,0.452]
[1755958812300,10.40264012,4749.1,4746.5,0.452]
[1755958812500,2.76588383,4748.6,4746.5,0.452]
[1755958812731,0.66,4747.9,4747.8,0.01170023]
[1755958812932,11.40749431,4747.9,4747.8,0.01170023]
[1755958813145,11.24202168,4747.9,4747.8,0.01170023]
[1755958813324,13.34821599,4747.9,4747.8,0.01170023]
[1755958813902,11.24202168,4747.9,4747.8,0.01170023]
[1755958814102,13.34821599,4747.9,4747.8,0.01170023]
[1755958814334,7.04382168,4747.9,4747.8,0.01170023]
[1755958814533,9.8811,4747.9,4747.8,0.01170023]
[1755958815417,11.98729431,4747.9,4747.8,0.01170023]
[1755958815735,9.8811,4747.9,4747.8,0.01170023]
[1755958817132,6.8811,4747.9,4747.8,0.01170023]
[1755958817698,3.1551,4747.9,4747.8,0.01170023]
[1755958817939,7.40321926,4747.9,4747.8,0.01170023]
[1755958818515,9.50941357,4747.9,4747.8,0.01170023]
[1755958819038,7.40321926,4747.9,4747.8,0.01170023]
[1755958819605,9.50941357,4747.9,4747.8,0.01170023]
[1755958821937,12.50941357,4747.9,4747.8,0.01170023]
[1755958822709,8.78741357,4747.9,4747.8,0.01170023]
[1755958822910,12.49941357,4747.9,4747.8,0.01170023]
[1755958824117,2.25071926,4747.9,4747.8,0.30640023]
[1755958824430,5.4356,4747.9,4747.8,0.76700023]
[1755958825011,5.4356,4747.9,4747.8,0.30640023]
[1755958825411,6.382,4747.9,4747.8,0.01170023]
[1755958825644,9.59505611,4747.9,4747.8,0.01270023]
[1755958825941,13.06945611,4747.9,4747.8,0.01270023]
[1755958827368,7.2522618,4747.9,4747.8,0.01270023]
[1755958827656,10.2004618,4747.9,4747.8,0.01270023]
[1755958828016,12.54845611,4747.9,4747.8,0.01270023]
[1755958828221,7.4422618,4747.9,4747.8,0.01270023]
[1755958828416,3.3858618,4747.9,4747.8,0.01270023]
[1755958828766,6.0936,4747.9,4747.8,0.30740023]
[1755958829054,1.7246,4747.9,4747.8,0.30740023]
[1755958829216,5.4336,4747.9,4747.8,0.30740023]
[1755958829546,6.0936,4747.9,4747.8,0.30740023]
[1755958829750,6.0936,4747.9,4747.8,0.76800023]
[1755958829751,6.0946,4747.9,4747.8,0.76800023]
[1755958829917,6.70426,4747.9,4747.8,0.76800023]
[1755958830246,6.04326,4747.9,4747.8,0.76800023]
[1755958830447,6.0936,4747.9,4747.8,0.76800023]
[1755958831652,2.3846,4747.9,4747.8,0.76800023]
[1755958831840,6.0926,4747.9,4747.8,0.76800023]
[1755958832416,0.1056,4747.9,4747.8,2.8742389]
[1755958832615,0.002,4748.1,4747.8,2.8742389]
[1755958832616,0.002,4748.1,4748.0,2.10614995]
[1755958832945,0.002,4748.1,4748.0,2.40084995]
[1755958833145,0.002,4748.1,4748.0,2.86144995]
[1755958833847,0.002,4748.1,4748.0,0.7553]
[1755958834019,0.002,4748.1,4748.0,2.86144995]
[1755958835235,0.002,4748.1,4748.0,0.7553]
[1755958835643,0.002,4748.1,4748.0,2.86144995]
[1755958836556,0.002,4748.1,4748.0,5.86144995]
[1755958837224,0.002,4748.1,4748.0,5.96704995]
[1755958837445,1e-08,4748.1,4748.0,5.96704995]
[1755958838567,1e-08,4748.1,4748.0,9.66704995]
[1755958839852,1e-08,4748.1,4748.0,5.96704995]
[1755958840032,1e-08,4748.1,4748.0,9.66604995]
[1755958840233,1e-08,4748.1,4748.0,5.96704995]
[1755958840868,1e-08,4748.1,4748.0,9.66504995]
[1755958841064,1e-08,4748.1,4748.0,5.96704995]
[1755958841368,1e-08,4748.1,4748.0,9.66504995]
[1755958844063,1e-08,4748.1,4748.0,9.66004995]
[1755958845587,1e-08,4748.1,4748.0,5.96704995]
[1755958845942,1e-08,4748.1,4748.0,9.65604995]
[1755958846141,1e-08,4748.1,4748.0,9.19544995]
[1755958846344,1e-08,4748.1,4748.0,9.65604995]
[1755958849180,1e-08,4748.1,4748.0,9.65204995]
[1755958851772,1e-08,4748.1,4748.0,5.96704995]
[1755958851974,1e-08,4748.1,4748.0,9.65204995]
[1755958853875,1e-08,4748.1,4748.0,5.96704995]
[1755958854051,1e-08,4748.1,4748.0,9.54644995]
[1755958854240,1e-08,4748.1,4748.0,9.65204995]
[1755958855978,1e-08,4748.1,4748.0,9.7584281]
[1755958856178,1e-08,4748.1,4748.0,9.65204995]
[1755958856475,1e-08,4748.1,4748.0,2.96704995]
[1755958856677,1e-08,4748.1,4748.0,5.96704995]
[1755958856854,1e-08,4748.1,4748.0,9.65204995]
[1755958859082,1e-08,4748.1,4748.0,9.19144995]
[1755958859276,1e-08,4748.1,4748.0,9.19044995]
[1755958859488,1e-08,4748.1,4748.0,9.63704995]
[1755958859882,1e-08,4748.1,4748.0,9.63804995]
[1755958860087,1e-08,4748.1,4748.0,5.95404995]
[1755958860270,1e-08,4748.1,4748.0,2.50744995]
[1755958860474,1e-08,4748.1,4748.0,6.19144995]
[1755958860675,1e-08,4748.1,4748.0,9.63804995]
[1755958862512,1e-08,4748.1,4748.0,5.95404995]
[1755958862797,1e-08,4748.1,4748.0,9.63804995]
[1755958863000,1e-08,4748.1,4748.0,5.95404995]
[1755958863207,1e-08,4748.1,4748.0,9.63804995]
[1755958865776,1e-08,4748.6,4748.5,2.10592818]
[1755958865922,1e-08,4748.6,4748.5,9.09842818]
[1755958866127,1e-08,4748.6,4748.5,9.65062818]
[1755958866363,1e-08,4749.1,4749.0,2.10570646]
[1755958866574,1e-08,4749.1,4749.0,10.71720646]
[1755958866780,1e-08,4749.1,4749.0,11.26940646]
[1755958867078,1e-08,4749.8,4749.7,2.10539613]
[1755958867226,1e-08,4749.8,4749.7,9.09789613]
[1755958867426,1e-08,4749.8,4749.7,9.20349613]
[1755958867666,1e-08,4749.8,4749.7,9.65009613]
[1755958869989,1e-08,4749.8,4749.7,9.80969194]
[1755958870393,1e-08,4749.8,4749.7,9.65009613]
[1755958870595,1e-08,4749.8,4749.7,5.51949613]
[1755958870765,1e-08,4749.8,4749.7,8.89399613]
[1755958871163,1e-08,4749.8,4749.7,5.21099613]
[1755958871363,0.29070001,4749.8,4749.7,8.89399613]
[1755958871898,1e-08,4749.8,4749.7,5.21099613]
[1755958872056,1e-08,4749.8,4749.7,9.20249613]
[1755958872256,1e-08,4749.8,4749.7,5.51949613]
[1755958872492,1e-08,4749.8,4749.7,9.20249613]
[1755958874800,1e-08,4749.8,4749.7,9.64909613]
[1755958875151,1e-08,4749.8,4749.7,9.20249613]
[1755958875854,1e-08,4749.8,4749.7,9.64909613]
[1755958877176,0.022,4750.8,4750.7,2.10495295]
[1755958877373,0.022,4750.8,4750.7,10.82005295]
[1755958878491,0.5585,4752.3,4751.7,2.10450996]
[1755958878657,0.3108,4751.8,4751.7,10.51110996]
[1755958879979,0.7617,4751.8,4751.7,10.51110996]
[1755958880177,0.3108,4751.8,4751.7,10.51110996]
[1755958882093,0.02,4751.8,4751.7,11.26230996]
[1755958882305,0.002,4752.0,4751.7,11.26230996]
[1755958882306,0.002,4752.0,4751.9,2.10442138]
[1755958882463,0.002,4752.0,4751.9,9.07802138]
[1755958882773,0.002,4752.0,4751.9,9.53662138]
[1755958883388,0.002,4752.0,4751.9,5.85562138]
[1755958883690,0.002,4752.0,4751.9,9.53662138]
[1755958884262,0.002,4752.4,4752.3,2.10424426]
[1755958884502,0.002,4752.4,4752.3,6.07784426]
[1755958884710,0.002,4752.4,4752.3,9.64204426]
[1755958885168,0.002,4752.4,4752.3,9.18344426]
[1755958885369,1e-08,4752.4,4752.3,5.50244426]
[1755958885723,1e-08,4752.4,4752.3,5.96104426]
[1755958886089,1e-08,4752.4,4752.3,9.18244426]
[1755958886288,1e-08,4752.4,4752.3,5.50244426]
[1755958886488,1e-08,4752.4,4752.3,8.88984426]
[1755958886489,0.29080001,4752.4,4752.3,8.88984426]
[1755958886693,1e-08,4752.4,4752.3,8.88984426]
[1755958886890,0.29080001,4752.4,4752.3,8.88984426]
[1755958887071,0.29080001,4752.4,4752.3,5.20984426]
[1755958887268,0.74170001,4752.4,4752.3,5.20984426]
[1755958887572,0.74170001,4752.4,4752.3,5.88984426]
[1755958887869,0.74170001,4752.4,4752.3,0.1056]
[1755958888083,0.74170001,4752.4,4752.3,3.7856]
[1755958888306,0.74170001,4752.4,4752.3,3.68]
[1755958889000,0.74170001,4752.4,4752.0,0.1056]
[1755958889001,0.74170001,4752.4,4751.8,0.02]
[1755958889303,0.4509,4752.3,4751.9,3.68]
[1755958889620,0.2908,4752.0,4751.9,3.68]
[1755958890102,0.4509,4752.3,4752.2,2.10428854]
[1755958890288,0.7417,4752.3,4752.2,5.78328854]
[1755958890499,0.7417,4752.3,4752.2,3.7846]
[1755958890714,0.7417,4752.3,4752.2,0.1056]
[1755958890868,0.7417,4752.3,4752.2,3.7846]
[1755958891076,0.7417,4752.3,4752.2,5.88888854]
[1755958891778,1e-08,4752.4,4752.3,2.10424426]
[1755958891986,1e-08,4752.4,4752.3,5.50244426]
[1755958892312,1e-08,4752.4,4752.3,5.96104426]
[1755958892710,1e-08,4752.4,4752.3,5.50244426]
[1755958892910,1e-08,4752.4,4752.3,2.20984426]
[1755958893228,1e-08,4752.4,4752.3,5.88884426]
[1755958893419,1e-08,4752.4,4752.3,6.18144426]
[1755958893612,1e-08,4752.4,4752.3,6.64004426]
[1755958893976,1e-08,4752.4,4752.3,9.64004426]
[1755958895597,1e-08,4753.4,4752.5,0.66]
[1755958895798,1e-08,4753.4,4753.3,2.39640156]
[1755958895975,1e-08,4753.4,4753.3,9.18020156]
[1755958896179,1e-08,4753.4,4753.3,5.50120156]
[1755958896382,1e-08,4753.4,4753.3,9.63880156]
[1755958896812,1e-08,4753.4,4753.3,5.95980156]
[1755958897010,1e-08,4753.4,4753.3,5.50120156]
[1755958897322,1e-08,4753.4,4753.3,9.18020156]
[1755958897995,1e-08,4753.4,4753.3,9.63880156]
[1755958898219,1e-08,4753.4,4753.3,10.19400156]
[1755958899689,1e-08,4753.4,4753.3,6.51500156]
[1755958900305,1e-08,4753.4,4753.3,10.19300156]
[1755958900507,1e-08,4753.4,4753.3,6.51500156]
[1755958900698,1e-08,4753.4,4753.3,10.19300156]
[1755958901114,1e-08,4753.4,4753.3,10.27725956]
[1755958902591,1e-08,4753.4,4753.3,10.52829266]
[1755958903500,1e-08,4753.4,4753.3,6.85029266]
[1755958903793,1e-08,4754.4,4754.2,3.0]
[1755958903994,1e-08,4754.4,4754.3,10.68995906]
[1755958904221,1e-08,4754.4,4754.3,7.01295906]
[1755958904916,1e-08,4754.4,4754.3,11.14855906]
[1755958905121,0.42090001,4755.4,4755.3,2.10291674]
[1755958905444,0.71170001,4755.4,4755.3,10.39691674]
[1755958905596,0.71170001,4755.4,4755.3,8.293]
[1755958905798,0.71170001,4755.4,4755.3,10.39591674]
[1755958906242,0.71170001,4755.4,4755.3,6.71991674]
[1755958906534,0.71170001,4755.4,4755.3,1.617]
[1755958906920,0.71170001,4755.4,4755.3,5.293]
[1755958908121,0.81650001,4755.4,4755.3,5.293]
[1755958908566,0.81650001,4755.4,4755.3,1.617]
[1755958908714,0.81650001,4755.4,4755.3,5.293]
[1755958909923,0.71170001,4755.4,4755.3,5.293]
[1755958910123,0.71170001,4755.4,4755.3,1.7218]
[1755958910335,0.71170001,4755.4,4755.3,5.3978]
[1755958911017,0.71170001,4755.4,4755.3,5.293]
[1755958911650,0.71370001,4755.4,4755.3,5.293]
[1755958912550,0.71370001,4755.4,4755.3,1.617]
[1755958912753,0.71370001,4755.4,4755.3,5.292]
[1755958912920,0.2928,4755.4,4755.3,5.292]
[1755958913114,0.7326,4755.4,4755.3,5.3968]
[1755958913532,0.7326,4755.4,4755.3,7.49971674]
[1755958913742,0.002,4755.4,4755.3,7.49971674]
[1755958914463,0.002,4755.4,4755.3,5.3968]
[1755958915043,0.002,4755.4,4755.3,3.82471674]
[1755958915242,0.002,4755.4,4755.3,7.49971674]
[1755958915452,0.002,4755.4,4755.3,10.69211674]
[1755958915453,1e-08,4755.4,4755.3,10.69211674]
[1755958915663,1e-08,4755.4,4755.3,11.14181674]
[1755958916223,1e-08,4755.4,4755.3,7.46681674]
[1755958916533,1e-08,4755.4,4755.3,11.14981674]
[1755958917335,0.02,4755.8,4754.8,0.02]
[1755958917523,0.02,4755.8,4754.9,3.725]
[1755958917727,0.02,4755.8,4755.7,2.39993987]
[1755958917965,0.02,4755.8,4755.7,3.0]
[1755958918275,0.3159,4755.8,4755.7,5.83273987]
[1755958918454,0.3159,4755.8,4755.7,2.10273987]
[1755958918758,0.3159,4755.8,4755.7,5.83273987]
[1755958918932,0.02,4755.8,4755.7,5.83273987]
[1755958919457,0.3793,4755.8,4755.7,3.729]
[1755958920124,0.0236,4755.8,4755.7,3.729]
[1755958920429,0.02,4755.8,4755.7,6.57863987]
[1755958920623,0.02,4755.8,4755.7,2.10273987]
[1755958920853,0.02,4755.8,4755.7,8.83273987]
[1755958921165,0.02,4755.8,4755.7,9.57963987]
[1755958921367,0.02,4755.8,4755.7,9.12993987]
[1755958921666,0.02,4755.8,4755.7,8.83273987]
[1755958921973,0.0236,4755.8,4755.7,3.73]
[1755958922180,0.3793,4755.8,4755.7,3.73]
[1755958922343,0.3793,4755.8,4755.3,0.0456]
[1755958922697,0.3557,4755.7,4755.3,0.0456]
[1755958922858,0.0071,4755.4,4755.3,0.0456]
[1755958923242,0.02,4755.8,4755.3,0.0456]
[1755958923761,0.02,4755.8,4755.3,1.6626]
[1755958923949,0.3793,4755.8,4755.3,3.76550992]
[1755958924153,0.02,4755.8,4755.7,2.10273987]
[1755958924350,0.02,4755.8,4755.7,5.83173987]
[1755958924566,0.02,4755.8,4755.7,9.57863987]
[1755958925382,0.02,4755.8,4755.7,8.83173987]
[1755958925681,0.0236,4755.8,4755.7,6.8318]
[1755958925848,0.0236,4755.8,4755.7,0.1048]
[1755958926174,0.3793,4755.8,4755.7,3.8318]
[1755958926377,0.02,4755.8,4755.7,5.93453987]
[1755958927298,0.02,4755.8,4755.7,9.23173987]
[1755958927445,0.02,4755.8,4755.7,9.68143987]
[1755958928340,0.022,4755.8,4755.7,9.68143987]
[1755958928979,0.0256,4755.8,4755.7,3.1048]
[1755958929280,0.022,4755.8,4755.7,9.12393987]
[1755958929480,0.022,4755.8,4755.7,9.22873987]
[1755958929680,0.022,4755.8,4755.7,8.93153987]
[1755958930992,0.022,4755.8,4755.7,9.67843987]
[1755958932652,0.022,4755.8,4755.7,8.93353987]
[1755958932951,0.0253,4755.8,4755.7,3.8288]
[1755958933255,0.0253,4755.8,4755.7,5.93253987]
[1755958933460,0.0253,4755.8,4755.7,3.8298]
[1755958933790,0.0253,4755.8,4755.7,0.1048]
[1755958933949,0.3484,4755.8,4755.7,3.8278]
[1755958934156,0.0253,4755.8,4755.7,3.8278]
[1755958934353,0.022,4755.8,4755.7,5.93053987]
[1755958934785,0.0253,4755.8,4755.7,3.8258]
[1755958935102,0.0253,4755.8,4755.7,5.92853987]
[1755958935479,0.0253,4755.8,4755.7,3.8258]
[1755958935988,0.022,4755.8,4755.7,5.92653987]
[1755958936299,0.022,4755.8,4755.7,8.92653987]
[1755958937458,0.022,4755.8,4755.7,9.22373987]
[1755958937697,0.022,4755.8,4755.7,9.67343987]
[1755958942302,0.022,4755.8,4755.7,9.66283987]
[1755958942676,0.022,4755.8,4755.7,5.20753987]
[1755958942891,0.022,4755.8,4755.7,8.91753987]
[1755958943378,0.022,4755.8,4755.7,8.91653987]
[1755958944096,0.022,4755.8,4755.7,8.91453987]
[1755958944398,0.2696,4755.8,4755.7,3.1048]
[1755958944605,0.2696,4755.8,4755.7,3.8108]
[1755958944826,0.7065,4755.8,4755.7,3.8108]
[1755958945015,0.7065,4755.8,4755.7,3.8138]
[1755958945311,0.7065,4755.8,4755.7,3.709]
[1755958945312,0.8113,4755.8,4755.7,3.709]
[1755958945523,0.8113,4755.8,4755.3,0.0466]
[1755958945672,0.3744,4755.8,4755.4,3.708]
[1755958945872,0.4369,4755.7,4755.4,3.708]
[1755958946073,0.4369,4755.7,4755.3,0.0466]
[1755958946074,0.2495,4755.5,4755.3,0.0466]
[1755958946302,0.2495,4755.5,4755.4,3.708]
[1755958946690,0.6845,4755.5,4755.4,3.707]
[1755958947087,0.6845,4755.5,4755.4,3.706]
[1755958947284,0.6845,4755.5,4755.4,3.705]
[1755958947893,0.7893,4755.5,4755.4,3.705]
[1755958948608,0.7893,4755.5,4755.3,0.0466]
[1755958948776,0.3543,4755.5,4755.4,3.704]
[1755958948976,0.3543,4755.5,4755.3,3.7506]
[1755958949285,0.4388,4755.4,4755.3,0.0466]
[1755958949914,0.4388,4755.4,4755.3,3.7496]
[1755958950117,0.1048,4755.5,4755.3,0.0466]
[1755958950319,0.6845,4755.4,4755.3,0.0466]
[1755958952323,0.97589984,4755.4,4755.3,0.0466]
[1755958952521,1.63589984,4755.4,4755.3,0.0466]
[1755958952832,1.63589984,4755.4,4754.8,0.001]
[1755958952833,0.66,4755.0,4754.8,0.001]
[1755958952986,2.10302796,4755.1,4754.8,0.001]
[1755958952987,6.06959365,4754.9,4754.8,0.001]
[1755958953186,7.25951335,4754.9,4754.8,0.001]
[1755958953390,6.60939365,4754.9,4754.8,0.001]
[1755958953991,4.5063,4754.9,4754.8,0.001]
[1755958954685,0.3543,4754.9,4754.8,0.001]
[1755958954887,1.617,4755.7,4754.8,0.001]